bitfinex/quotes_ETHUSD_20240718
["timestamp","ask_amount","ask_price","bid_price","bid_amount"]
[1721324880244,2.92945,3413.6,3413.0,5.23634]
[1721324880446,2.92945,3413.6,3413.1,3.55]
[1721324881471,2.92934,3413.8,3413.1,6.47988]
[1721324881670,2.92937,3413.7,3413.1,7.651502]
[1721324882372,2.92946,3413.6,3413.1,4.721622]
[1721324882576,2.92946,3413.6,3413.2,0.05930717]
[1721324882768,2.92935,3413.8,3413.2,0.05930717]
[1721324883088,2.92939,3413.7,3413.2,0.05930717]
[1721324883889,2.92923,3413.9,3413.2,2.98909717]
[1721324884092,5.85851,3413.9,3413.2,4.48559609]
[1721324884574,2.92929,3413.8,3413.2,4.48559609]
[1721324884948,2.92916,3414.0,3413.4,2.92962]
[1721324885351,2.92916,3414.0,3413.5,0.0591099]
[1721324885568,2.92895,3414.2,3413.6,2.92945]
[1721324885768,2.92903,3414.1,3413.5,0.0591099]
[1721324885970,2.92903,3414.1,3413.7,0.05897839]
[1721324886168,2.92895,3414.2,3413.6,0.05911118]
[1721324886169,2.92911,3414.0,3413.6,0.05911118]
[1721324886380,2.92911,3414.0,3413.8,0.05897969]
[1721324886591,2.92911,3414.0,3413.7,0.05904543]
[1721324886791,2.92895,3414.2,3413.7,0.05904543]
[1721324887076,2.92895,3414.2,3413.8,0.05897969]
[1721324887281,2.92886,3414.3,3413.8,0.05897969]
[1721324887452,2.92895,3414.2,3413.5,2.92953]
[1721324887783,2.92895,3414.2,3413.6,3.53855118]
[1721324888680,10.214131,3414.9,3413.6,0.05911118]
[1721324888681,2.9292,3413.9,3413.6,0.05911118]
[1721324888895,2.92904,3414.1,3413.6,0.05911118]
[1721324889047,2.92904,3414.1,3413.5,2.92954]
[1721324889249,2.92904,3414.1,3413.6,0.05911118]
[1721324889970,2.92885,3414.3,3413.6,2.98855118]
[1721324890288,2.92885,3414.3,3413.7,0.29885512]
[1721324890699,2.92885,3414.3,3413.8,0.05897969]
[1721324891194,2.92885,3414.3,3413.7,0.29885512]
[1721324891374,2.92885,3414.3,3413.9,0.05891395]
[1721324891579,2.92885,3414.3,3413.8,2.92927]
[1721324891580,2.9287,3414.5,3413.8,2.98824969]
[1721324891779,0.29287,3414.5,3414.0,0.05884821]
[1721324891956,0.29287,3414.5,3413.6,2.92944]
[1721324891957,2.92901,3414.2,3413.9,0.05891395]
[1721324892148,2.92901,3414.2,3414.1,0.05878248]
[1721324892350,2.92901,3414.2,3414.0,0.05884821]
[1721324892584,2.92901,3414.2,3414.1,0.05878248]
[1721324892788,3.251198,3414.2,3414.1,0.05878248]
[1721324892994,2.92913,3414.0,3413.4,2.92959]
[1721324893158,2.92913,3414.0,3413.5,2.92954]
[1721324893485,2.9288,3414.4,3413.6,2.92944]
[1721324893691,2.9288,3414.4,3413.8,2.92928]
[1721324894570,2.9288,3414.4,3413.8,2.92921]
[1721324894888,2.92852,3414.7,3414.1,2.92896]
[1721324895094,2.9286,3414.6,3413.9,3.47913]
[1721324895459,2.9287,3414.5,3413.5,2.9295]
[1721324895700,2.9289,3414.3,3413.7,2.92937]
[1721324896490,3.22157,3414.5,3413.3,2.018]
[1721324896491,2.92896,3414.2,3413.3,2.018]
[1721324896705,2.92896,3414.2,3413.1,3.0]
[1721324896706,2.92942,3413.7,3413.1,3.0]
[1721324897057,2.92942,3413.7,3413.1,5.92986]
[1721324897482,2.92942,3413.7,3413.2,0.05738085]
[1721324900892,2.92907,3414.1,3413.5,2.92951]
[1721324901093,2.92904,3414.1,3413.6,2.92945]
[1721324901266,2.92912,3414.0,3413.6,0.05711781]
[1721324901590,2.92912,3414.0,3413.4,5.85912]
[1721324901591,2.92912,3414.0,3413.5,2.92952]
[1721324901791,2.92912,3414.0,3413.7,0.05705207]
[1721324901991,2.92912,3414.0,3413.6,0.05711781]
[1721324902193,2.92912,3414.0,3413.8,0.05698632]
[1721324902493,2.92912,3414.0,3413.5,2.92952]
[1721324902494,2.92912,3414.0,3413.9,0.05692058]
[1721324902889,2.92912,3414.0,3413.5,2.92952]
[1721324903090,2.92901,3414.2,3413.9,0.05692058]
[1721324903392,6.719888,3414.2,3413.5,2.92952]
[1721324903596,5.85803,3414.2,3413.5,2.92952]
[1721324903785,2.92901,3414.2,3413.6,0.05714051]
[1721324904096,2.92901,3414.2,3413.6,2.98659051]
[1721324904278,2.92907,3414.1,3413.6,0.05714051]
[1721324904483,2.92907,3414.1,3413.4,2.92955]
[1721324904685,2.92907,3414.1,3413.7,0.05707476]
[1721324904997,2.92907,3414.1,3413.5,2.92953]
[1721324905596,2.92907,3414.1,3413.6,2.98657824]
[1721324905813,2.9289,3414.3,3413.6,3.57819106]
[1721324906485,2.92895,3414.2,3413.6,3.57819106]
[1721324906686,2.92904,3414.1,3413.6,2.98657824]
[1721324907858,2.9289,3414.3,3413.6,5.91594824]
[1721324908071,2.9289,3414.3,3413.7,2.92936]
[1721324908264,2.92896,3414.2,3413.8,0.05695748]
[1721324908490,2.92896,3414.2,3413.6,2.92937]
[1721324908813,2.92896,3414.2,3413.7,2.92936]
[1721324909126,2.92891,3414.3,3413.7,2.92936]
[1721324909323,2.92891,3414.3,3413.8,0.05688628]
[1721324909917,2.92891,3414.3,3413.9,0.05682054]
[1721324910118,2.92891,3414.3,3413.7,2.9293]
[1721324910323,2.92891,3414.3,3414.0,0.0567548]
[1721324910495,2.92891,3414.3,3413.7,2.9293]
[1721324910821,2.92891,3414.3,3413.7,6.682419]
[1721324911035,2.92875,3414.5,3413.9,2.92919]
[1721324911238,2.92825,3415.0,3414.4,2.92875]
[1721324911735,2.92825,3415.0,3414.5,0.05642618]
[1721324911939,2.92843,3414.8,3414.5,0.05642618]
[1721324912245,2.92843,3414.8,3414.3,2.92884]
[1721324912407,0.885633,3414.9,3414.3,2.92884]
[1721324912733,0.885633,3414.9,3414.4,0.05646315]
[1721324913339,2.92825,3415.0,3414.4,0.05646315]
[1721324913640,2.92825,3415.0,3414.4,2.98520315]
[1721324913820,2.92813,3415.2,3414.5,2.92866]
[1721324914022,2.288,3415.3,3414.7,2.92844]
[1721324914343,2.928,3415.3,3414.8,0.05609127]
[1721324914664,3.513578,3415.3,3414.8,2.98451127]
[1721324915709,2.928,3415.3,3414.8,2.98451127]
[1721324916852,2.9279,3415.5,3414.8,2.98445127]
[1721324917049,2.92793,3415.4,3414.8,2.98445127]
[1721324917413,4.14541854,3415.7,3415.1,2.92815]
[1721324917615,5.30473299,3415.7,3415.2,0.05570055]
[1721324917866,4.08702445,3415.7,3415.2,0.05570055]
[1721324918029,4.08702445,3415.7,3415.1,2.92815]
[1721324918223,4.08702445,3415.7,3415.2,0.05570206]
[1721324919255,2.92775,3415.6,3415.2,0.05570206]
[1721324919462,3.7509983,3415.6,3414.9,2.92826]
[1721324919757,3.7509983,3415.6,3415.0,2.98406345]
[1721324920262,0.8232483,3415.6,3415.0,2.98406345]
[1721324920467,2.92771,3415.7,3415.0,2.98406345]
[1721324922360,2.92751,3415.9,3415.3,2.92797]
[1721324922731,2.92751,3415.9,3415.4,0.05557069]
[1721324924180,2.92782,3415.5,3415.4,0.05557069]
[1721324924505,2.92774,3415.6,3415.4,0.05554272]
[1721324924701,5.85556,3415.6,3415.4,0.05554272]
[1721324925007,5.85556,3415.6,3415.0,2.92823]
[1721324925206,2.92774,3415.6,3415.5,0.05547704]
[1721324925367,2.92774,3415.6,3415.1,2.92815]
[1721324925556,2.92774,3415.6,3415.5,0.05547704]
[1721324925755,2.92774,3415.6,3415.1,2.92815]
[1721324925950,2.92774,3415.6,3415.5,0.05547704]
[1721324926215,2.92774,3415.6,3415.1,2.92815]
[1721324926356,2.92774,3415.6,3415.5,0.05547704]
[1721324926669,3.58237703,3415.6,3415.5,0.05547704]
[1721324926856,2.92774,3415.6,3415.1,2.92816]
[1721324927059,2.92774,3415.6,3415.2,0.05567409]
[1721324927786,2.92758,3415.8,3415.2,2.92808]
[1721324927985,2.92758,3415.8,3415.3,0.05557214]
[1721324928356,2.92767,3415.7,3415.1,2.92816]
[1721324928949,2.92767,3415.7,3415.2,0.05563783]
[1721324929154,2.92775,3415.6,3415.2,0.05563783]
[1721324929383,3.513275,3415.6,3415.2,0.05563783]
[1721324929700,3.513275,3415.6,3415.0,2.92823]
[1721324929701,2.9278,3415.6,3415.0,2.92823]
[1721324930065,5.85561,3415.6,3415.0,2.92823]
[1721324930271,2.92784,3415.5,3415.1,0.05570352]
[1721324932458,2.92791,3415.4,3415.1,0.05570352]
[1721324932661,2.92784,3415.5,3414.8,2.92835]
[1721324932856,2.92784,3415.5,3414.9,2.98414081]
[1721324934289,2.92788,3415.5,3414.9,2.98414081]
[1721324934688,5.85578,3415.5,3414.9,2.98414081]
[1721324934906,2.92792,3415.4,3414.9,2.98414081]
[1721324936665,2.92792,3415.4,3414.9,0.05580081]
[1721324937995,2.92792,3415.4,3414.9,2.98413081]
[1721324939291,2.92783,3415.5,3415.0,2.92825]
[1721324939609,2.92783,3415.5,3415.1,0.05563835]
[1721324940525,5.85573,3415.5,3415.1,0.05563835]
[1721324940730,2.92791,3415.4,3415.1,0.05563835]
[1721324940881,2.92791,3415.4,3414.9,0.59126308]
[1721324941082,2.92791,3415.4,3415.0,0.05570404]
[1721324941282,2.92791,3415.4,3414.8,2.92836]
[1721324941516,2.92791,3415.4,3414.9,0.05576974]
[1721324941707,2.92791,3415.4,3414.9,2.98409974]
[1721324942130,2.9278,3415.6,3415.0,2.92823]
[1721324942355,2.92769,3415.7,3415.1,2.92812]
[1721324942506,5.85542,3415.7,3415.1,5.29565835]
[1721324942836,2.92769,3415.7,3415.1,2.36753835]
[1721324943715,2.92789,3415.5,3415.1,0.05563835]
[1721324944202,2.92815,3415.2,3414.7,2.3119]
[1721324944408,2.92821,3415.1,3414.7,2.3119]
[1721324944713,2.92828,3415.0,3414.5,2.9286]
[1721324945248,2.92837,3414.9,3414.3,5.24072]
[1721324946159,2.2505,3415.4,3414.1,2.92901]
[1721324946160,2.92856,3414.7,3414.1,2.92901]
[1721324946432,2.92856,3414.7,3414.1,4.04602]
[1721324946612,2.92856,3414.7,3414.2,0.55]
[1721324946808,5.8568,3414.9,3414.2,3.47891]
[1721324947128,2.92838,3414.9,3414.3,2.92879]
[1721324947708,2.92838,3414.9,3414.3,5.85758]
[1721324947899,2.92838,3414.9,3414.3,3.66151589]
[1721324948635,2.92838,3414.9,3414.3,0.73272589]
[1721324948939,2.92838,3414.9,3414.2,0.55]
[1721324949102,2.92838,3414.9,3414.1,4.88697]
[1721324949302,2.92838,3414.9,3414.1,7.81593]
[1721324949303,2.92858,3414.7,3414.1,7.81593]
[1721324949802,2.92858,3414.7,3414.1,4.88697]
[1721324950234,2.92858,3414.7,3413.8,3.0]
[1721324950235,0.841,3414.5,3413.5,6.07359]
[1721324950444,2.92938,3413.7,3413.1,5.84474885]
[1721324951112,2.92929,3413.8,3413.2,2.92975]
[1721324951302,2.92929,3413.8,3413.3,1.05332571]
[1721324952045,2.92946,3413.6,3413.3,1.05332571]
[1721324952204,2.92946,3413.6,3413.1,5.84481885]
[1721324952539,2.92946,3413.6,3412.9,3.77099]
[1721324952704,2.92946,3413.6,3412.7,5.23329]
[1721324952705,2.92969,3413.4,3412.7,5.23329]
[1721324953041,2.92969,3413.4,3412.8,3.0]
[1721324953242,2.9298,3413.2,3412.6,0.841]
[1721324953448,2.9298,3413.2,3412.6,3.7713]
[1721324953650,2.9298,3413.2,3412.6,4.671779]
[1721324953838,2.92991,3413.1,3412.6,1.741479]
[1721324954152,2.92998,3413.0,3412.6,0.841]
[1721324954304,2.92998,3413.0,3412.4,2.93048]
[1721324957119,2.93015,3412.8,3412.1,2.93069]
[1721324957311,2.4787,3413.2,3412.2,2.93064]
[1721324957312,2.92999,3413.0,3412.2,2.93064]
[1721324957507,2.92999,3413.0,3412.4,2.9304]
[1721324957810,2.92983,3413.2,3412.5,2.93034]
[1721324958006,2.9299,3413.1,3412.5,2.98236955]
[1721324958428,2.9299,3413.1,3412.5,2.88236955]
[1721324958630,2.92966,3413.4,3412.6,2.9303]
[1721324958631,2.92977,3413.3,3412.6,2.9303]
[1721324958804,3.515743,3413.2,3412.5,2.88236955]
[1721324959004,2.9299,3413.1,3412.7,0.05191752]
[1721324959533,3.515813,3413.2,3412.8,0.05185174]
[1721324959940,3.515813,3413.2,3412.6,2.93031]
[1721324960243,2.92931,3413.8,3412.9,0.05189114]
[1721324960427,2.92931,3413.8,3412.7,2.4265]
[1721324960630,2.92942,3413.7,3413.1,2.92987]
[1721324961023,2.92942,3413.7,3413.2,0.05169082]
[1721324961365,5.22595,3414.0,3413.2,2.98147082]
[1721324961366,2.92915,3414.0,3413.2,2.98147082]
[1721324961505,5.85797,3414.2,3413.4,2.92957]
[1721324961815,5.85797,3414.2,3413.5,0.05147099]
[1721324961816,3.744507,3414.1,3413.5,0.05147099]
[1721324962022,2.92917,3414.0,3413.5,0.05147099]
[1721324962607,2.2968,3414.4,3413.5,0.05147099]
[1721324962803,2.92863,3414.6,3413.8,2.92922]
[1721324963252,2.92843,3414.8,3414.2,2.92893]
[1721324963449,2.2968,3414.9,3414.2,2.92893]
[1721324963450,0.815352,3414.7,3414.2,2.92893]
[1721324963659,0.815352,3414.7,3414.3,0.05091653]
[1721324964051,0.815352,3414.7,3414.2,2.92893]
[1721324964359,0.815352,3414.7,3414.3,0.0508321]
[1721324964523,2.2968,3415.3,3414.3,0.0508321]
[1721324964524,2.92817,3415.1,3414.4,2.92868]
[1721324965057,2.92817,3415.1,3414.5,0.05066384]
[1721324965468,5.2248,3415.3,3414.5,0.05066384]
[1721324965622,5.2248,3415.3,3414.6,2.92859]
[1721324966138,2.928,3415.3,3414.7,2.97891165]
[1721324966341,0.585586,3415.2,3414.8,2.92842]
[1721324966550,2.92786,3415.5,3414.8,2.92842]
[1721324966551,2.92801,3415.3,3414.8,2.92842]
[1721324966725,2.2968,3415.7,3414.9,0.05028025]
[1721324966925,2.92809,3415.2,3414.6,2.92853]
[1721324967155,2.92809,3415.2,3414.7,0.05041165]
[1721324968839,2.92821,3415.1,3414.7,0.05041165]
[1721324969035,2.88623,3415.0,3414.0,2.92903]
[1721324969270,2.9284,3414.9,3414.2,2.92893]
[1721324969472,2.92848,3414.8,3414.1,0.0507303]
[1721324969671,2.92848,3414.8,3413.8,2.4118]
[1721324969672,2.92865,3414.6,3414.3,0.05059885]
[1721324969971,2.92865,3414.6,3414.4,0.05046899]
[1721324970144,3.514362,3414.6,3414.4,0.05046899]
[1721324970647,3.514362,3414.6,3414.5,0.05038421]
[1721324970862,3.514362,3414.6,3413.9,2.92915]
[1721324971277,3.514362,3414.6,3414.0,2.9797295]
[1721324971481,2.92869,3414.5,3414.0,0.0506795]
[1721324971688,2.92902,3414.1,3414.0,0.0506795]
[1721324971897,2.92902,3414.1,3413.3,5.35637]
[1721324971898,2.92925,3413.9,3413.3,2.92967]
[1721324972786,2.92929,3413.8,3413.4,0.05109576]
[1721324973144,5.85908,3413.5,3413.4,0.05109576]
[1721324973362,5.85908,3413.5,3412.6,2.93026]
[1721324973363,2.92971,3413.4,3412.6,2.93026]
[1721324973599,3.515448,3413.5,3412.6,2.93026]
[1721324973600,2.92971,3413.3,3412.6,2.93026]
[1721324973752,2.92971,3413.3,3412.7,0.05159974]
[1721324974077,2.9295,3413.6,3412.9,2.93003]
[1721324974241,2.92938,3413.7,3413.0,0.0514024]
[1721324974446,2.92954,3413.5,3413.0,0.0514024]
[1721324976487,6.451758,3413.7,3413.0,2.9813524]
[1721324976642,2.92952,3413.6,3413.0,0.0514024]
[1721324977071,3.522318,3413.7,3413.0,0.0514024]
[1721324977270,0.592938,3413.7,3413.0,0.0514024]
[1721324977647,2.92912,3414.0,3413.3,2.92965]
[1721324978146,2.92912,3414.0,3413.4,0.05116714]
[1721324979147,2.92912,3414.0,3413.4,2.98072714]
[1721324979385,2.92896,3414.2,3413.4,0.05116714]
[1721324979553,2.92896,3414.2,3413.6,2.9294]
[1721324979749,2.92903,3414.1,3413.6,2.9294]
[1721324979975,2.92903,3414.1,3413.7,0.05093908]
[1721324983074,5.85777,3414.3,3413.7,0.64193199]
[1721324983280,2.92845,3414.8,3414.0,2.92911]
[1721324983591,2.92845,3414.8,3414.2,2.92893]
[1721324983970,2.92845,3414.8,3414.3,0.050598]
[1721324984388,2.92845,3414.8,3414.2,2.92893]
[1721324984683,2.92845,3414.8,3414.4,0.05049218]
[1721324984865,2.92828,3415.0,3414.5,0.05039313]
[1721324985054,3.513919,3415.0,3414.5,0.05039313]
[1721324985258,3.513919,3415.0,3414.4,2.92874]
[1721324985481,3.513919,3415.0,3414.5,0.05039313]
[1721324985806,0.585639,3415.0,3414.5,2.97905313]
[1721324987107,3.513919,3415.0,3414.5,0.05039313]
[1721324988656,3.513919,3415.0,3414.5,2.97907313]
[1721324988987,2.92811,3415.2,3414.6,2.92858]
[1721324989363,2.92811,3415.2,3414.7,0.05010764]
[1721324990601,2.92811,3415.2,3414.7,2.97861764]
[1721324991106,2.92817,3415.1,3414.7,0.05010764]
[1721324991256,3.0,3415.7,3414.2,2.92891]
[1721324991603,2.9283,3415.0,3414.4,2.92876]
[1721324991905,2.92848,3414.8,3414.3,0.05030007]
[1721324992075,5.85728,3414.6,3414.5,0.04832631]
[1721324992276,5.85728,3414.6,3413.4,2.451]
[1721324992277,5.85736,3414.5,3414.4,0.04839203]
[1721324992562,2.4643,3415.0,3413.4,5.38058]
[1721324992563,2.92911,3414.0,3413.4,5.38058]
[1721324993085,2.9289,3414.3,3413.5,2.97849568]
[1721324993086,2.92902,3414.2,3413.5,2.97849568]
[1721324993292,10.07395469,3415.0,3413.5,2.97849568]
[1721324993293,2.92913,3414.0,3413.5,0.04899568]
[1721324993493,2.92913,3414.0,3413.3,2.92965]
[1721324993697,2.92925,3413.9,3413.3,2.92965]
[1721324993893,2.92929,3413.8,3413.4,0.04911101]
[1721324994070,2.92929,3413.8,3413.2,2.92979]
[1721324994600,2.92954,3413.5,3413.3,0.04917677]
[1721324994799,2.92963,3413.4,3413.3,0.04917677]
[1721324995097,2.92963,3413.4,3412.5,5.42327]
[1721324995098,2.92971,3413.3,3412.5,5.42327]
[1721324995415,2.92971,3413.3,3412.7,2.93018]
[1721324995781,2.92971,3413.3,3412.8,0.04953794]
[1721324996299,2.92971,3413.3,3412.9,0.04947216]
[1721324996470,2.92971,3413.3,3412.7,2.93018]
[1721324996830,2.92954,3413.5,3412.8,2.97960794]
[1721324996980,2.92941,3413.7,3412.9,2.92998]
[1721324997179,2.92968,3413.4,3412.8,0.04953794]
[1721324997407,2.92968,3413.4,3412.7,2.93017]
[1721324997408,2.92968,3413.4,3413.0,0.04940638]
[1721324997691,2.92968,3413.4,3412.9,0.04947216]
[1721324997890,2.92968,3413.4,3413.1,0.04934061]
[1721324998101,2.92968,3413.4,3413.0,0.04940638]
[1721324998301,2.92968,3413.4,3412.8,2.93013]
[1721324998302,2.92959,3413.5,3413.1,0.04934061]
[1721324998468,2.92959,3413.5,3412.9,2.93005]
[1721324998701,2.92959,3413.5,3413.0,0.04940638]
[1721324999203,2.92963,3413.4,3413.0,0.04940638]
[1721324999630,2.92963,3413.4,3412.7,2.93015]
[1721324999817,2.92963,3413.4,3413.1,0.04934061]
[1721325000022,2.92963,3413.4,3412.7,2.93015]
[1721325000211,2.92963,3413.4,3413.2,0.04927484]
[1721325000415,2.92963,3413.4,3412.8,2.93011]
[1721325000735,0.6444392,3413.7,3412.5,5.42329]
[1721325000736,2.9299,3413.1,3412.5,5.42329]
[1721325000934,2.9299,3413.1,3412.6,0.04966951]
[1721325000935,2.92992,3413.1,3412.6,0.04966951]
[1721325001157,2.93001,3413.0,3412.1,2.93069]
[1721325001345,2.93018,3412.8,3412.1,2.93069]
[1721325001655,2.93018,3412.8,3412.2,2.93064]
[1721325001949,2.93055,3412.4,3412.2,0.04995599]
[1721325002251,2.93035,3412.6,3412.2,0.04995599]
[1721325002543,2.93041,3412.5,3411.9,5.4229]
[1721325002724,2.93041,3412.5,3412.0,0.05024164]
[1721325002930,2.93054,3412.4,3412.0,0.05024164]
[1721325003241,2.93054,3412.4,3411.8,2.931]
[1721325003403,0.586095,3412.3,3412.1,0.05017583]
[1721325003736,2.93062,3412.3,3412.2,0.05015513]
[1721325004102,2.93062,3412.3,3411.0,2.93165]
[1721325004103,2.93081,3412.1,3411.2,2.93146]
[1721325004302,2.93081,3412.1,3411.3,0.05074752]
[1721325004303,2.931,3411.8,3411.3,0.05074752]
[1721325004530,2.931,3411.8,3411.2,2.93146]
[1721325004730,2.93088,3412.0,3411.4,0.05071177]
[1721325004945,2.93088,3412.0,3411.4,2.98204177]
[1721325005260,2.93093,3411.9,3411.4,0.05071177]
[1721325005626,0.586169,3412.0,3411.4,2.93133]
[1721325005822,2.93091,3411.9,3411.5,0.05066474]
[1721325006360,2.931,3411.8,3411.6,0.05059815]
[1721325006564,2.931,3411.8,3411.2,2.93145]
[1721325006760,2.93129,3411.5,3411.3,0.05079565]
[1721325006991,2.93129,3411.5,3410.9,2.93174]
[1721325007145,2.93129,3411.5,3411.4,0.05072982]
[1721325007340,3.517529,3411.5,3410.9,2.93174]
[1721325007564,2.93129,3411.5,3411.0,0.05101425]
[1721325007933,2.93135,3411.4,3411.0,0.05101425]
[1721325008125,2.9315,3411.3,3410.3,3.2934]
[1721325008330,2.93178,3410.9,3410.4,0.05142297]
[1721325008632,2.93167,3411.1,3410.4,0.05142297]
[1721325008633,2.93167,3411.1,3410.4,2.98362297]
[1721325008830,2.93167,3411.1,3410.5,2.93211]
[1721325009256,2.93169,3411.0,3410.6,0.04963556]
[1721325009563,2.93169,3411.0,3410.2,2.9323]
[1721325009564,2.93169,3411.0,3410.4,2.93215]
[1721325009732,2.93169,3411.0,3410.5,0.04970143]
[1721325010133,2.93146,3411.3,3410.5,0.04970143]
[1721325010134,0.293169,3410.9,3410.5,0.04970143]
[1721325010335,2.93201,3410.7,3410.0,3.0799497]
[1721325010528,2.93201,3410.7,3410.1,0.04996494]
[1721325010838,2.9317,3411.0,3410.4,2.93215]
[1721325011145,2.9316,3411.1,3410.5,0.04973002]
[1721325011146,2.93186,3410.8,3410.5,0.04973002]
[1721325011353,2.93195,3410.7,3410.0,3.0799097]
[1721325011556,2.93177,3411.0,3410.1,0.05000783]
[1721325011731,2.93195,3410.7,3410.1,2.98240783]
[1721325011936,2.93214,3410.5,3410.1,0.05000783]
[1721325012255,2.93195,3410.7,3410.1,2.98243783]
[1721325013130,2.93179,3410.9,3410.1,2.98243783]
[1721325013335,7.5,3411.5,3410.2,5.24919737]
[1721325013534,2.93127,3411.5,3410.8,2.93178]
[1721325013767,2.93135,3411.4,3410.9,0.04950044]
[1721325013966,2.93144,3411.3,3410.9,0.04950044]
[1721325014293,2.93153,3411.2,3410.6,2.93201]
[1721325014472,2.93153,3411.2,3411.0,0.04943459]
[1721325014772,2.93153,3411.2,3411.1,0.04936874]
[1721325014984,2.93153,3411.2,3410.3,2.93225]
[1721325014985,2.93182,3410.9,3410.3,2.93225]
[1721325015671,6.01917,3411.6,3410.1,2.93244]
[1721325015672,2.93186,3410.8,3410.1,2.93244]
[1721325016074,2.4954,3411.3,3410.0,3.0799297]
[1721325016280,2.93204,3410.6,3410.0,3.0799297]
[1721325016439,2.93204,3410.6,3410.1,2.93245]
[1721325017466,2.93204,3410.6,3410.2,0.04995625]
[1721325017866,2.93204,3410.6,3410.0,3.0799397]
[1721325018066,2.93204,3410.6,3410.3,0.04989037]
[1721325018244,3.518431,3410.6,3410.0,3.0799397]
[1721325018438,3.518431,3410.6,3410.4,0.04982449]
[1721325018679,3.518431,3410.6,3410.1,2.93246]
[1721325018680,0.586391,3410.6,3410.1,2.93246]
[1721325018883,2.93192,3410.8,3410.5,0.04975862]
[1721325019067,2.93161,3411.1,3410.4,2.93214]
[1721325019268,2.93143,3411.3,3410.6,2.93203]
[1721325019442,9.7734,3411.8,3410.7,2.93191]
[1721325019443,2.93133,3411.5,3410.7,2.93191]
[1721325019772,2.93154,3411.2,3410.7,0.04969612]
[1721325020181,2.93135,3411.4,3410.7,0.04969612]
[1721325020382,2.9312,3411.6,3410.9,2.93176]
[1721325020581,0.29312,3411.6,3410.9,2.93176]
[1721325020781,0.29312,3411.6,3410.7,2.4336]
[1721325020782,2.93103,3411.8,3411.0,2.98107898]
[1721325020982,3.0,3411.7,3411.1,2.93152]
[1721325021212,3.0,3411.7,3411.0,2.98107898]
[1721325021348,2.93123,3411.6,3411.0,0.04947898]
[1721325021547,2.93151,3411.2,3411.1,0.04941314]
[1721325021753,2.93151,3411.2,3410.5,2.93211]
[1721325021754,3.517804,3411.2,3410.5,2.93211]
[1721325021989,3.517804,3411.2,3410.5,2.93203]
[1721325022186,6.01889,3412.0,3410.5,2.93203]
[1721325022187,2.93129,3411.5,3410.7,2.93193]
[1721325022485,5.021,3412.2,3410.7,2.93193]
[1721325022486,2.9312,3411.6,3410.9,2.93171]
[1721325022652,2.9312,3411.6,3411.0,2.93163]
[1721325022853,2.9312,3411.6,3411.0,2.9811263]
[1721325023154,2.93102,3411.8,3411.1,2.9316]
[1721325023485,2.9312,3411.6,3411.2,0.0493646]
[1721325023849,2.9312,3411.6,3411.0,2.93163]
[1721325024046,3.0,3411.7,3411.3,0.04929575]
[1721325024253,2.93123,3411.6,3410.8,2.93182]
[1721325024548,3.0,3411.7,3411.1,2.9316]
[1721325024549,2.9311,3411.7,3411.1,2.9316]
[1721325024776,3.2829087,3411.6,3411.2,0.04934729]
[1721325024986,3.2829087,3411.6,3411.0,2.93169]
[1721325024987,0.3517287,3411.6,3411.1,2.93155]
[1721325025197,0.3517287,3411.6,3411.3,0.04928145]
[1721325025404,0.3517287,3411.6,3411.2,0.04934729]
[1721325025554,3.0,3411.7,3411.4,0.04921561]
[1721325025756,0.586187,3411.8,3411.1,2.93155]
[1721325025757,6.517207,3411.8,3411.1,2.93155]
[1721325025957,6.517207,3411.8,3411.2,2.98085729]
[1721325025958,3.586187,3411.8,3411.2,2.98085729]
[1721325026179,2.93077,3412.1,3411.5,2.93119]
[1721325026393,2.93083,3412.0,3411.4,2.93134]
[1721325026567,2.93103,3411.8,3411.6,0.04908245]
[1721325026891,2.93103,3411.8,3411.2,2.93146]
[1721325027113,2.93103,3411.8,3411.7,0.04901662]
[1721325027253,2.93115,3411.7,3411.0,2.93169]
[1721325027655,5.86232,3411.7,3411.0,2.93161]
[1721325027913,2.9312,3411.6,3411.0,2.93161]
[1721325028196,2.9312,3411.6,3411.1,2.93018798]
[1721325028413,3.576039,3411.6,3411.0,2.93161]
[1721325028612,3.576039,3411.6,3410.6,2.93199]
[1721325028613,2.93141,3411.4,3410.6,2.93199]
[1721325028965,2.93121,3411.6,3410.8,2.93178]
[1721325029183,2.93104,3411.8,3411.0,2.93163]
[1721325029385,2.93122,3411.6,3410.9,2.93177]
[1721325029573,2.93132,3411.5,3410.9,2.93177]
[1721325030525,2.93167,3411.1,3410.1,2.93238]
[1721325030802,3.0,3411.4,3410.0,2.4793997]
[1721325031009,5.23906,3412.0,3410.5,2.93209]
[1721325031010,3.0,3411.6,3410.5,2.93209]
[1721325031307,2.9317,3411.0,3410.1,2.93242]
[1721325031613,2.9317,3411.0,3410.3,2.93222]
[1721325031904,2.9317,3411.0,3410.3,2.93221]
[1721325032104,2.9314,3411.4,3410.0,4.5003997]
[1721325032312,2.93156,3411.2,3410.5,2.93205]
[1721325032465,2.93156,3411.2,3410.4,2.93219]
[1721325032665,2.93135,3411.4,3410.8,2.93181]
[1721325032980,0.586264,3411.3,3410.9,0.08630679]
[1721325033177,3.0,3411.4,3410.9,3.01805679]
[1721325034005,5.93135,3411.4,3410.9,0.08630679]
[1721325034291,2.9315,3411.3,3410.9,0.08630679]
[1721325034494,2.9315,3411.3,3410.7,2.93189]
[1721325034665,2.9316,3411.1,3411.0,0.08623309]
[1721325034870,2.93175,3411.0,3410.3,2.93222]
[1721325035170,2.93175,3411.0,3410.4,3.01883474]
[1721325035483,0.3,3411.3,3410.4,0.08663474]
[1721325035701,3.23149,3411.3,3410.7,2.93194]
[1721325035869,0.3,3411.3,3410.8,2.93181]
[1721325036069,0.3,3411.3,3410.8,3.01817696]
[1721325036273,3.23143,3411.3,3410.8,0.08636696]
[1721325036510,3.23143,3411.3,3410.6,2.93195]